Cogmind - Beta 16 *** ADVENTURER MODE // 2025.11.14 @ 14:54:13 Player: elysium Result: Destroyed by H-55 Commando with Assault Rifle Performance ------------- Evolutions (0) 0 Regions Visited (3) 600 Robots Destroyed (40) 200 Value Destroyed (891) 891 Prototype IDs (27) 540 Alien Tech Used (0) 0 Bonus (300) 300 TOTAL SCORE: 2531 Bonus ------- Aligned with FarCom 300 Cogmind --------- Core Integrity 0/250 Matter 10/300 Energy 125/125 System Corruption 2% Temperature Cool (0) Movement Treading (480) Ox4 Location -10/Exiles Parts ------- > --- POWER (1) -------- Light Ion Engine > --- PROPULSION (2) --- Light Treads > --- UTILITY (2) ------ Huge Storage Unit > --- WEAPON (2) ------- Mini Grenade Launcher Mini Grenade Launcher > --- INVENTORY (25) --- Light Treads Compact Wheel Compact Wheel Compact Wheel Compact Wheel Compact Wheel Compact Wheel Sensor Array Improved Terrain Scanner Terrain Scan Processor Seismic Detector Targeting Computer Small Laser Particle Gun Particle Gun AWS/Thermal Assault Rifle Light Assault Rifle Mini Grenade Launcher Mining Laser Peak State ------------ > --- POWER ------------ Ion Engine > --- PROPULSION ------- Light Treads Light Treads > --- UTILITY ---------- Huge Storage Unit Improved Terrain Scanner > --- WEAPON ----------- Mini Grenade Launcher Mini Grenade Launcher > --- INVENTORY -------- Light Ion Engine Light Treads Light Treads Compact Wheel Compact Wheel Compact Wheel Compact Wheel Compact Wheel Compact Wheel Sensor Array Improved Terrain Scanner Terrain Scan Processor Seismic Detector Targeting Computer Small Laser Particle Gun Particle Gun Particle Gun AWS/Thermal Assault Rifle Light Assault Rifle Mini Grenade Launcher Mini Grenade Launcher Mining Laser [Rating: 15] Favorites ----------- Power Ion Engine Engine Ion Engine Propulsion Light Treads Treads Light Treads Leg Aluminum Leg Utility Huge Storage Unit Device Improved Terrain Scanner Storage Huge Storage Unit Weapon Light Assault Rifle Energy Gun Particle Gun Ballistic Gun Light Assault Rifle Launcher Mini Grenade Launcher Build | -11 -10 -10 -10 ------- Run | Yrd Mat Min Exi Slots Evolved . | . . . . Power . | . . . . Propulsion . | . . . . Utility . | . . . . Weapon . | . . . . Parts Attached 17 | 7 4 . 6 Power 2 | 1 . . 1 Engine 2 | 1 . . 1 Core . | . . . . Reactor . | . . . . Propulsion 5 | 2 2 . 1 Treads 3 | . 2 . 1 Leg 2 | 2 . . . Wheel . | . . . . Hover . | . . . . Flight . | . . . . Utility 3 | 2 1 . . Device 1 | 1 . . . Storage 2 | 1 1 . . Processor . | . . . . Hackware . | . . . . Protection . | . . . . Artifact . | . . . . Weapon 7 | 2 1 . 4 Energy Gun 2 | 1 1 . . Energy Cannon . | . . . . Ballistic Gun 2 | 1 . . 1 Ballistic Cannon . | . . . . Launcher 3 | . . . 3 Special Weapon . | . . . . Impact Weapon . | . . . . Slashing Weapon . | . . . . Piercing Weapon . | . . . . Special Melee Weapon . | . . . . Unidentified Prototypes . | . . . . Parts Lost 6 | . . . 6 Power 1 | . . . 1 Propulsion 2 | . . . 2 Utility 1 | . . . 1 Weapon 2 | . . . 2 Highest Loss Streak 3 | . . . 3 To Critical Strikes . | . . . . Average Backups 20 | 5 21 25 24 Power . | . 1 1 . Propulsion 7 | 1 7 8 7 Utility 5 | 1 6 6 5 Weapon 7 | 1 6 10 9 Tool/Special . | . . . . Unused Backups 24 | . 4 . 20 Power . | . . . . Propulsion 9 | . 2 . 7 Utility 7 | . 1 . 6 Weapon 8 | . 1 . 7 Tool/Special . | . . . . Average Slot Usage (%) 98 | . 98 100 98 Engine 13 | . 13 14 13 Treads 26 | . 26 28 27 Device 13 | . 13 14 12 Storage 14 | . 14 14 14 Energy Gun 13 | . 13 14 13 Ballistic Gun 13 | . 14 14 12 Peak Build Rating 15 | 10 13 13 15 Average Rating 11 | 5 11 13 13 On Entrance 9 | . 10 13 13 Avg Prop Armor Cover (%) . | . . . . Naked Turns . | . . . . Heaviest Build 90 | 14 90 90 90 Greatest Support 40 | 20 40 40 40 Greatest Overweight (x) 2 | 1 2 2 2 Average Overweight (x) 1 | . 1 2 2 Largest Inventory Capacity 25 | 8 25 25 25 Average Capacity 22 | 7 24 25 25 Most Carried 25 | 8 25 25 25 Average Carried 21 | 5 21 25 24 Final Capacity 25 | 8 25 25 25 Final Carried 25 | 8 25 25 21 Class Distribution -------------------- 100% | Mutant Dominant Class ---------------- Mutant | -10/Materials Mutant | -10/Mines Mutant | -10/Exiles Resources | -11 -10 -10 -10 ----------- Run | Yrd Mat Min Exi Matter Collected 376 | 300 76 . . Remotely . | . . . . Salvage Created 977 | 298 419 . 260 Parts 67 | 22 28 . 17 Haulers Intercepted 1 | . 1 . . Recyclers Shooed . | . . . . Parts Field Recycled . | . . . . Retrieved Matter . | . . . . Parts Self-Destructed . | . . . . Prevented . | . . . . Parts Restored . | . . . . Kills | -11 -10 -10 -10 ------- Run | Yrd Mat Min Exi Combat Hostiles Destroyed 25 | . 12 . 13 Guns 12 | . 11 . 1 AOE 13 | . 1 . 12 Classes Destroyed 11 | 3 5 . 3 Worker 3 | 2 1 . . Builder 1 | . 1 . . Tunneler 7 | 7 . . . Hauler 1 | . 1 . . Recycler 1 | 1 . . . Watcher 2 | . 2 . . Swarmer 8 | . 8 . . Grunt 12 | . 4 . 8 Demolisher 1 | . . . 1 Hunter 2 | . . . 2 Programmer 2 | . . . 2 Best Kill Streak 7 | 3 5 . 7 Combat Bots Only 7 | . 4 . 7 Max Kills in Single Turn 3 | 1 2 . 3 Gunslinging . | . . . . Exploded 3 | . 1 . 3 Melee . | . . . . Uniques/NPCs Destroyed . | . . . . Combat | -11 -10 -10 -10 -------- Run | Yrd Mat Min Exi Hostile Shots Fired 127 | . 56 . 71 Missed 36 | . 13 . 23 Hits 91 | . 43 . 48 Projectile 91 | . 43 . 48 AOE 9 | . . . 9 Critical Strikes 2 | . . . 2 Part Disruptions 2 | . . . 2 Damage Taken 1130 | . 391 . 739 Core 254 | . 95 . 159 Absorbed by Shields . | . . . . Ignored by Resistances 330 | . 120 . 210 Regen/Repaired (Parts) 174 | . 174 . . Core Remaining (%) 100 | 100 . . . Volleys Fired 79 | 30 36 . 13 Largest 2 | 2 2 . 2 Hottest 95 | 60 85 . 95 Shots Fired 157 | 60 72 . 25 Gun 137 | 60 72 . 5 Cannon . | . . . . Launcher 20 | . . . 20 Special . | . . . . Kinetic 66 | 30 36 . . Thermal 17 | . 12 . 5 Explosive 20 | . . . 20 Electromagnetic 54 | 30 24 . . Robot Hit Streak 21 | 14 21 . 18 Robot Miss Streak 2 | 1 2 . . Penetration Max . | . . . . Secondary Targets 2 | . 2 . . Max Gunslinging Chain 1 | . 1 . . Shots Hit Robots 111 | 44 51 . 16 Core Hits 74 | 14 25 . 35 Critical Kills . | . . . . Critical Parts Destroyed . | . . . . Critical Strikes 4 | 1 2 . 1 Burn 3 | . 2 . 1 Corrupt 1 | 1 . . . Melee Attacks . | . . . . Impact . | . . . . Slashing . | . . . . Piercing . | . . . . Sneak Attacks . | . . . . Combat Hostiles . | . . . . Follow-up Attacks . | . . . . Damage Inflicted 2497 | 485 755 . 1257 Guns 1198 | 485 629 . 84 Cannons . | . . . . Explosions 1299 | . 126 . 1173 Melee . | . . . . Ramming . | . . . . Kinetic 330 | 161 169 . . Thermal 383 | . 299 . 84 Explosive 1173 | . . . 1173 Electromagnetic 611 | 324 287 . . Impact . | . . . . Slashing . | . . . . Piercing . | . . . . Highest Corruption 1 | . . . 1 Average Corruption 1 | . . . 1 Corruption Purged . | . . . . Corruption Blocked . | . . . . Overload Shots . | . . . . Overflow Damage 10 | . 10 . . Projectiles . | . . . . Explosions 10 | . 10 . . Melee . | . . . . Knockbacks . | . . . . Impact . | . . . . Kinetic . | . . . . Secondary . | . . . . Self-Inflicted Damage 28 | . 28 . . Shots 1 | . 1 . . Rammed . | . . . . Targets Rammed . | . . . . Kicked . | . . . . Crushed . | . . . . Highest Temperature 262 | 40 262 . 66 Average Temperature 53 | 16 81 . 23 Received Heat Transfer 198 | . 174 . 24 Effects 1 | . 1 . . Energy Bleed 1 | . 1 . . Siege Activations . | . . . . Martial Activations . | . . . . Shielding Activations . | . . . . Robots Disrupted 1 | . 1 . . Combat Hostiles . | . . . . Robots Corrupted . | . . . . Combat Hostiles . | . . . . Parts Fried 2 | 2 . . . Impact Corruptions . | . . . . Robots Melted . | . . . . Combat Hostiles . | . . . . Parts Melted . | . . . . Heat Transferred 964 | . 705 . 259 Parts Sabotaged . | . . . . Parts Stolen . | . . . . Parts Stripped . | . . . . Power Chain Reactions 2 | . 2 . . Alert | -11 -10 -10 -10 ------- Run | Yrd Mat Min Exi Maximum Alert Level 1 | . 1 . . Low Security (%) 98 | 100 97 100 . Level 1 1 | . 2 . . Level 2 . | . . . . Level 3 . | . . . . Level 4 . | . . . . Level 5 . | . . . . High Security . | . . . . Max Security . | . . . . Peak Influence 216 | 10 216 . . Initial . | . . . . Average 44 | 1 56 . . Influence Increases 728 | 50 418 . 260 Destroy 0b10 Robot/C 500 | . 240 . 260 Destroy 0b10 Robot/NC 75 | 50 25 . . Destroy Leader 56 | . 56 . . Successful Hack 8 | . 8 . . Disable Machine 9 | . 9 . . Destroy Structure 5 | . 5 . . Partial Spotted 15 | . 15 . . Lose Combat Pursuer 60 | . 60 . . Influence Decreases 558 | 50 418 . 90 Time Decay 498 | 50 418 . 30 Lost Part 60 | . . . 60 Squads Dispatched 1 | . 1 . . Investigation 1 | . 1 . . Extermination . | . . . . Reinforcement . | . . . . Assault . | . . . . Garrison . | . . . . Intercept . | . . . . Searches Triggered . | . . . . Construction Impeded . | . . . . Haulers Reinforced . | . . . . Active Scanning Responses . | . . . . Cargo Convoy Interrupts . | . . . . Stealth | -11 -10 -10 -10 --------- Run | Yrd Mat Min Exi Distress Signals 3 | . 3 . . Communications Jammed . | . . . . Distress Signals . | . . . . Times Spotted 46 | . 26 . 20 Peak Tracking Total 7 | . 5 . 7 Tactical Retreats 3 | . 3 . . Traps | -11 -10 -10 -10 ------- Run | Yrd Mat Min Exi Traps Triggered . | . . . . Indirectly . | . . . . Trap Hack Attempts . | . . . . Triggered . | . . . . Disarmed . | . . . . Reprogrammed . | . . . . Reused . | . . . . Traps Extracted . | . . . . Installed . | . . . . Triggered . | . . . . Machines | -11 -10 -10 -10 ---------- Run | Yrd Mat Min Exi Machines Disabled 2 | . 1 . 1 Max in Single Turn 1 | . 1 . 1 Machines Repaired . | . . . . Machines Dismantled . | . . . . Machines Sabotaged . | . . . . Overloaded Fab Kills . | . . . . Hacking | -11 -10 -10 -10 --------- Run | Yrd Mat Min Exi Machines Accessed 8 | . 6 . 2 Terminals 5 | . 5 . . Fabricators . | . . . . Repair Stations 1 | . 1 . . Recycling Units . | . . . . Scanalyzers . | . . . . Garrison Access . | . . . . Total Hacks 31 | . 21 . 10 Successful 25 | . 15 . 10 Failed 6 | . 6 . . Catastrophic . | . . . . Database Lockouts . | . . . . Manual 1 | . . . 1 Terminals 12 | . 12 . . Fabricators . | . . . . Repair Stations 9 | . 9 . . Recycling Units . | . . . . Scanalyzers . | . . . . Garrison Access . | . . . . Terminal Hacks 17 | . 7 . 10 Record 9 | . . . 9 Prototype ID Bank 2 | . 2 . . Branch Access Points 1 | . 1 . . Emergency Access Points 2 | . 2 . . Locate Traps 1 | . 1 . . Zone Layout 1 | . 1 . . Proto ID Catalog 1 | . . . 1 Fabricator Hacks . | . . . . Repair Station Hacks 8 | . 8 . . Scan Component 4 | . 4 . . Repair 4 | . 4 . . Recycling Unit Hacks . | . . . . Scanalyzer . | . . . . Garrison Access Hacks . | . . . . Unauthorized Hacks . | . . . . Terminals . | . . . . Fabricators . | . . . . Repair Stations . | . . . . Recycling Units . | . . . . Scanalyzers . | . . . . Garrison Access . | . . . . Data Cores Recovered . | . . . . Used . | . . . . Hacking Detections 5 | . 5 . . Full Trace Events 1 | . 1 . . Feedback Events . | . . . . Feedback Blocked . | . . . . Robot Schematics Acquired . | . . . . Robots Built . | . . . . Authchips . | . . . . Time . | . . . . Total Robot Build Rating . | . . . . Part Schematics Acquired . | . . . . Parts Built . | . . . . Authchips . | . . . . Time . | . . . . Total Part Build Rating . | . . . . Part Studies Acquired . | . . . . Parts Repaired 4 | . 4 . . Time 116 | . 116 . . Parts Recycled . | . . . . Recycled Matter . | . . . . Retrieved Matter . | . . . . Retrieved Components . | . . . . Parts Scanalyzed . | . . . . Part Schematics Acquired . | . . . . Parts Damaged . | . . . . Bothacking | -11 -10 -10 -10 ------------ Run | Yrd Mat Min Exi Used RIF Installer . | . . . . Robots Hacked . | . . . . Non-combat . | . . . . Combat . | . . . . Robot Hacks Applied . | . . . . Relay Couplers Released . | . . . . Fabnet Peak Effective % . | . . . . Robots Rewired . | . . . . Allies Hacked . | . . . . Hacks Repelled . | . . . . Allies | -11 -10 -10 -10 -------- Run | Yrd Mat Min Exi Total Allies . | . . . . Largest Group . | . . . . Highest-Rated Group . | . . . . Highest-Rated Ally . | . . . . Total Orders . | . . . . Ally Attacks . | . . . . Total Damage . | . . . . Kills . | . . . . Allies Corrupted . | . . . . Allies Melted . | . . . . Intel | -11 -10 -10 -10 ------- Run | Yrd Mat Min Exi Active Infowar (turns) 2322 | 25 1399 157 741 Terrain 2322 | 25 1399 157 741 Robot Analysis Total . | . . . . Derelict Logs Recovered . | . . . . Drone Launches . | . . . . Drone Recoveries . | . . . . Exploration | -11 -10 -10 -10 ------------- Run | Yrd Mat Min Exi Turns Passed 2639 | 250 1437 157 795 Spaces Moved 806 | 126 397 50 233 Core 15 | 15 . . . Treads 629 | . 346 50 233 Legs 162 | 111 51 . . Wheels . | . . . . Hover . | . . . . Flight . | . . . . Fastest Speed 50 | 50 120 320 320 Average Speed 275 | 115 293 320 320 Slowest Speed 320 | 120 320 320 320 Overloaded Moves . | . . . . Propulsion Burnouts . | . . . . Robots Hopped . | . . . . Potential Cave-ins . | . . . . Cave-ins Triggered . | . . . . Exploration Rate (%) 38 | 7 75 24 46 Regions Visited 3 Branch Regions 2 Pre-discovered Areas . | . . . . Known Exits Taken 1 | . 1 . . Unknown Exits Taken 2 | 1 . 1 . Scrap Searched . | . . . . Spaces Dug . | . . . . Terrain Destroyed 46 | . 4 . 42 Melee . | . . . . Projectile . | . . . . AOE 46 | . 4 . 42 Terrain Rammed . | . . . . Walls Destroyed . | . . . . Machines Disabled . | . . . . Actions | -11 -10 -10 -10 --------- Run | Yrd Mat Min Exi Total 1089 | 177 606 49 257 Wait 130 | . 130 . . Move 803 | 125 396 49 233 Hop . | . . . . Pick Up 42 | 15 26 . 1 Fast Attach 5 | . 5 . . Attach 14 | 7 2 . 5 Detach . | . . . . Swap 4 | . 1 . 3 Drop 12 | . 10 . 2 Fire 79 | 30 36 . 13 Melee . | . . . . Ram . | . . . . Kick . | . . . . Crush . | . . . . Escape Stasis . | . . . . Rewire . | . . . . Trap . | . . . . Miscellaneous . | . . . . Route ------- -11/Scrapyard -10/Materials (discovered 3 exits: [*Mat x2] / *Min) -10/Mines -10/Exiles (discovered 1 exit: [*Min]) History --------- Turn | Location | Event 16 | -11/Scrapyard | Discovered new exit (range 15) 251 | -11/Scrapyard | Entered Materials 309 | -10/Materials | Build established: Mutant 360 | -10/Materials | Identified exit to Mines 807 | -10/Materials | Discovered new exit (range 15) 1320 | -10/Materials | Discovered new exit (range 16) 1438 | -10/Materials | Repaired Lgt. Treads 1466 | -10/Materials | Repaired Lgt. Treads 1505 | -10/Materials | Repaired Imp. Terrain Scanner 1533 | -10/Materials | Repaired Ion Engine 1688 | -10/Materials | Entered Mines 1829 | -10/Mines | Deemed a non-threat by the Exiles lab entrance 1832 | -10/Mines | Discovered new exit (range 5) 1845 | -10/Mines | Entered Exiles 1897 | -10/Exiles | Discovered new exit (range 15) 1948 | -10/Exiles | Met 8R-AWN 1993 | -10/Exiles | Met EX-HEX 2194 | -10/Exiles | Met EX-BIN 2236 | -10/Exiles | Aligned with FarCom system 2239 | -10/Exiles | Given EX-Vault access code 2351 | -10/Exiles | Opened EX-Vault 2369 | -10/Exiles | Found AWS/Thermal 2437 | -10/Exiles | Warned to stay clear of 0b10 Research branches 2483 | -10/Exiles | Exiles lab attacked by MAIN.C 2584 | -10/Exiles | Core integrity fell below 50% 2598 | -10/Exiles | Lost 7 allies 2608 | -10/Exiles | Destroyed 7 combat bots 2617 | -10/Exiles | Lost 3 parts (1n1u1w) 2636 | -10/Exiles | Core integrity fell below 20% 2640 | -10/Exiles | Destroyed by H-55 Commando with Assault Rifle Last Messages --------------- 02612_ P-60 Hacker destroyed. 02617_ The unstable cave ceiling collapses. 02620_ P-60 Hacker suffers critical hit (Burn). 02621_ Particle Gun destroyed. 02623_ The unstable cave ceiling collapses. 02624_ Slug penetrates Earth. 02624_ Destroyed Shock Rifle. 02627_ Ion Engine destroyed. 02627_ G-34 Mercenary destroyed. 02627_ P-60 Hacker destroyed. 02629_ The unstable cave ceiling collapses. 02634_ P-60 Hacker resets G-34 Mercenary, system corruption cleaned. 02635_ G-34 Mercenary destroyed. 02635_ Penetrated by Slug. 02636_ The unstable cave ceiling collapses. 02638_ G-34 Mercenary destroyed. 02638_ Penetrated by Slug. 02640_ Lgt. Treads destroyed. 02640_ Penetrated by Slug. Map ----- +----------------------------------------------------+ | """## ????????????????????????????????????? | | """""?????????????????????????????????????? | | """##?????????????????????????????????????? | | "X" """"" ????????????????????????????????????? | | """ # ????#?#??????????????????????????????? | | """""""""#?"????????????????????????????????????? | | ###########??????????????????????????????????????? | | #????????#?#???#????????????????????#????????????? | | #??????#???##??????#?????????????????????????????? | | ##?#???????????#???????????#????#??????#?#???????? | | ##???############?????###????????????#??????????? | | #####"""""""""##???????????????????????????????? | | " """ """"##??#???????????????????????????# | | "" " #??#???????????????????????????? | | " """#?#????#???????????????????#???? | | "a"###??#??????#####???##?????????? | | " ###?#??#??##" ##????????#????# | | ##??????#" ####??????????## | | #####?##" ##??????????# | | # ### ##????##?### | | #""" # ######### | | ##""" #### h """"## | | ?#"""" # # p p * | | ##"" gl * | | #"""" | | " @ ### | | # #??#### | | ## #?????????????##### | | ## ###?#?????#?##?????### | | " #######??????#?????#???????? | | "" """ " ##?#???????????#?????#?????# | | """ " " ""#" "##??????????????##???????#??? | | ####""" """##"""""""##????#???#???????#??????????? | | ???###""""###########??#?????????????????????????? | | ?#??#######?##?????????????????????????????#?????? | | ????????????#???????????#???????????????????????#? | | !#??????#??????#?????#????????????????????????#?#? | | "#??#????????????????????????????????????????????? | | "#???#???????????????????????????????????????????? | | ##??????????#??????#?????????????????????????????? | | ??#??????????????????????????????????????????????? | | ????#????????????????????????????????????????????? | | ?????????????????????????????????????????????????? | | ?????????????????????????????????????????????????? | | ??#??????????????????????????????????????????????? | | ??#??????????????????????????????????????????????? | | ?????????????????????????????????????????????????? | | ?????????????????????????????????????????????????? | | ?????????????????????????????????????????????????? | | ?????????????????????????????????????????????????? | +----------------------------------------------------+ Best States ------------- Heat Dissipation 25 Energy Generation 10 Energy Capacity 250 Matter Stores 300 Matter Capacity 300 Sight Range 16 Terrain Scan Range 16 Terrain Scan Density 10 Resistance: KI 20 Resistance: TH 20 Resistance: EX 20 Resistance: EM 20 Resistance: I 20 Resistance: S 20 Resistance: P 20 Evasion (%) 55 Recoil Reduction 2 Offensive Hacking 10 Item Schematics ----------------- None Robot Schematics ------------------ None Fabricated ------------ Nothing Repaired ---------- Lgt. Treads | 50% | -10/Materials Lgt. Treads | 66% | -10/Materials Imp. Terrain Scanner | 50% | -10/Materials Ion Engine | 21% | -10/Materials Studied --------- None Alien Tech Used ----------------- None Achievements -------------- None Challenges ------------ None Game ------ Seed DisassembledHoverRipper Manual? 0 Play Time 00:23:07 Cumulative 36.2 hours Start 2025.11.14 @ 13:25:34 End 2025.11.14 @ 14:54:13 Sessions 1 Manual Loads 0 Difficulty Adventurer Special Mode None Game No. 18 Rogue 2 Adventurer 16 Explorer 0 Win Type - Total 2 Types 2/0/0/0/0/0/0/0/0/0 Lore% 14 Gallery% 25 Achievement% 22 Wizard Run 0 Options --------- Layout 1 ASCII 0 Keyboard 0 Movement Mouse Keybinds 1 Fullscreen 2 Font 32/SmallcapsGlow Map View 50x35 Zoom Use 0% Tactical HUD 1 Map Filters NONE Filters NONE Steam 1 RUN: 221ef3a4-4fb8-44b0-b7ae-8ea61df73896